fUSD/lending_fUSD_20250807
["ID","MTS","AMOUNT","RATE_DAILY","PERIOD"]
[377753034,1754535039541,-560.49,0.00019,2]
[377753035,1754535039550,-696.249,0.00019,2]
[377753036,1754535039559,-326.91646793,0.00019,2]
[377753037,1754535039568,-152.83,0.00019057,2]
[377753038,1754535039578,-151.0,0.00019178,2]
[377753039,1754535039587,-177.49,0.00019178,2]
[377753040,1754535039596,-180.0,0.0001947,2]
[377753041,1754535039605,-233.28666079,0.0001949,2]
[377753042,1754535039624,-29.73333921,0.0001949,2]
[377753043,1754535039633,-1212.502,0.00019491,2]
[377753044,1754535039642,-560.49,0.00019547,3]
[377753045,1754535039651,-508.0,0.00019695,2]
[377753046,1754535039659,-150.0,0.00019701,2]
[377753047,1754535039668,-150.0,0.00019701,2]
[377753048,1754535039677,-150.6808945,0.00019701,2]
[377753049,1754535039686,-150.0,0.00019701,2]
[377753050,1754535039695,-150.0,0.00019701,2]
[377753051,1754535039704,-150.0,0.00019701,2]
[377753052,1754535039713,-150.0,0.00019701,2]
[377753053,1754535039727,-151.82346976,0.00019701,2]
[377753054,1754535039736,-150.0,0.00019701,2]
[377753055,1754535039744,-150.0,0.00019701,2]
[377753056,1754535039753,-151.05451722,0.00019701,2]
[377753057,1754535039762,-156.587,0.00019726,2]
[377753058,1754535039771,-297.42889377,0.00019799,2]
[377753059,1754535039780,-222.6429,0.000198,2]
[377753060,1754535039789,-602.34634899,0.000198,2]
[377753061,1754535039798,-2375.74931,0.0001981,2]
[377753062,1754535039806,-287.61899177,0.00019818,2]
[377753064,1754535039816,-200.0,0.00019825,2]
[377753066,1754535039825,-2500.0,0.00019885,2]
[377753068,1754535039834,-1000.0,0.00019885,2]
[377753070,1754535039844,-1000.0,0.00019885,2]
[377753072,1754535039853,-1000.0,0.00019885,2]
[377753074,1754535039863,-1000.0,0.00019885,2]
[377753076,1754535039872,-1000.0,0.00019885,2]
[377753078,1754535039881,-1000.0,0.00019885,2]
[377753080,1754535039891,-1000.0,0.00019885,2]
[377753082,1754535039901,-1000.0,0.00019885,2]
[377753084,1754535039910,-1000.0,0.00019885,2]
[377753086,1754535039920,-1000.0,0.00019885,2]
[377753088,1754535039929,-1000.0,0.00019885,2]
[377753090,1754535039939,-1000.0,0.00019885,2]
[377753092,1754535039948,-1000.0,0.00019885,2]
[377753094,1754535039957,-269.6141,0.00019885,2]
[377753095,1754535039966,-1028.431,0.00019885,2]
[377753098,1754535039976,-1751.77654811,0.0001989,2]
[377753099,1754535039985,-1530.90001848,0.00019896,2]
[377753101,1754535039995,-500.0,0.000199,2]
[377753103,1754535040004,-157.21404567,0.000199,2]
[377753105,1754535040014,-5000.0,0.000199,2]
[377753107,1754535040023,-204.95394525,0.000199,2]
[377753109,1754535040033,-3630.52521207,0.000199,2]
[377753111,1754535040042,-214.63925265,0.000199,2]
[377753113,1754535040051,-1400.0,0.000199,7]
[377753115,1754535040060,-308.24997147,0.000199,2]
[377753117,1754535040070,-1289.83785511,0.00019907,2]
[377753119,1754535040079,-1000.0,0.0001991,4]
[377753121,1754535040091,-250.0,0.0001991,2]
[377753123,1754535040100,-167.25426496,0.0001991,2]
[377753128,1754535040141,-132.74573504,0.0001991,2]
[377753130,1754535040150,-1000.0,0.0001991,4]
[377753132,1754535040159,-300.0,0.0001991,2]
[377753134,1754535040168,-1000.0,0.0001991,4]
[377753136,1754535040177,-250.0,0.0001991,2]
[377753137,1754535040187,-327.54,0.00019968,2]
[377753138,1754535040196,-301.0,0.00019973,2]
[377753139,1754535040205,-151.684545,0.00019985,2]
[377753140,1754535040215,-151.0,0.00019985,2]
[377753141,1754535040225,-151.0,0.00019985,2]
[377753142,1754535040234,-151.0,0.00019985,2]
[377753143,1754535040243,-151.0,0.00019985,2]
[377753144,1754535040253,-1000.0,0.00019985,2]
[377753145,1754535040262,-1008.16784915,0.00019985,2]
[377753146,1754535040271,-150.0,0.00019985,2]
[377753147,1754535040280,-1514.22840853,0.00019985,2]
[377753148,1754535040289,-150.0,0.00019985,2]
[377753149,1754535040298,-2603.91422119,0.00019985,2]
[377753150,1754535040308,-150.0,0.00019985,2]
[377753151,1754535040317,-8504.62784681,0.00019985,2]
[377753152,1754535040326,-1000.0,0.00019985,2]
[377753153,1754535040335,-1000.0,0.00019985,2]
[377753154,1754535040345,-1000.0,0.00019985,2]
[377753155,1754535040354,-150.0,0.00019985,2]
[377753156,1754535040364,-1724.47717982,0.00019985,2]
[377753157,1754535040374,-613.851089,0.00019996,2]
[377753158,1754535040384,-613.851089,0.00019996,2]
[377753159,1754535040393,-151.0,0.00019996,2]
[377753160,1754535040402,-151.0,0.00019996,2]
[377753161,1754535040411,-151.0,0.00019996,2]
[377753162,1754535040420,-186.785621,0.00019996,2]
[377753163,1754535040430,-151.0,0.00019996,2]
[377753164,1754535040439,-151.0,0.00019996,2]
[377753165,1754535040448,-151.0,0.00019996,2]
[377753166,1754535040459,-151.0,0.00019996,2]
[377753167,1754535040468,-151.0,0.00019996,2]
[377753168,1754535040478,-4584.83683886,0.00019996,2]
[377753169,1754535040499,-283.61900001,0.00019996,2]
[377753170,1754535040517,-732.60159616,0.00019996,2]
[377753171,1754535040925,-5438.34360463,0.00019996,2]
[377753185,1754535184486,545.81,0.00030135,120]
[377753186,1754535199731,545.81,0.00030134,120]
[377753187,1754535212926,545.81,0.00030133,120]
[377753188,1754535212997,269.98,0.00015068,2]
[377753189,1754535213197,269.98,0.00016721,2]
[377753190,1754535244187,545.81,0.00030132,120]
[377753191,1754535255075,545.81,0.00030131,120]
[377753192,1754535265570,545.81,0.0003013,120]
[377753197,1754535574331,188.0,0.000161,2]
[377753198,1754535574552,184.0,0.0001728,2]
[377753201,1754535585322,242.67,0.00016712,2]
[377753203,1754535633374,545.81,0.00030129,120]
[377753207,1754535652669,545.81,0.00030128,120]
[377753210,1754535740648,219.01,0.00013699,2]
[377753216,1754535785160,1381.62603823,0.00016,2]
[377753220,1754535915989,666.0,0.00018534,3]
[377753221,1754535946992,233.0,0.00030136,120]
[377753227,1754536105384,181.0,0.000151,2]
[377753228,1754536105719,177.0,0.0001628,2]
[377753229,1754536106086,173.0,0.0001747,2]
[377753230,1754536177099,250.0,0.00017784,2]
[377753254,1754536232096,-250.0,0.00018277,2]
[377753255,1754536232106,-120.54471424,0.00018374,2]
[377753256,1754536232138,-149.43528576,0.00018374,2]
[377753257,1754536232148,-170.0,0.0001865,2]
[377753258,1754536232157,-179.26271421,0.00018738,2]
[377753259,1754536232170,-649.0,0.00018837,2]
[377753260,1754536232182,-1200.0,0.00018837,2]
[377753261,1754536232193,-191.0,0.00018837,2]
[377753262,1754536232204,-150.0,0.00018838,2]
[377753263,1754536232214,-150.0,0.00018838,2]
[377753264,1754536232225,-150.0,0.00018838,2]
[377753265,1754536232235,-150.0,0.00018838,2]
[377753266,1754536232244,-150.0,0.00018838,2]
[377753267,1754536232253,-150.0,0.00018838,2]
[377753268,1754536232262,-150.0,0.00018838,2]
[377753269,1754536232273,-231.55688581,0.00018838,2]
[377753271,1754536232282,-150.0,0.00018961,2]
[377753273,1754536232292,-168.15,0.00018991,2]
[377753274,1754536232301,-2323.69,0.00018991,2]
[377753276,1754536232311,-765.439,0.00019,2]
[377753278,1754536232321,-349.765,0.00019,2]
[377753280,1754536232332,-1000.0,0.00019001,2]
[377753282,1754536232342,-157.81,0.00019001,2]
[377753284,1754536232353,-277.35679052,0.00019009,2]
[377753286,1754536232362,-150.0,0.00019013,2]
[377753288,1754536232372,-5158.53,0.0001902,2]
[377753290,1754536232382,-175.0,0.00019051,7]
[377753291,1754536232392,-150.0,0.00019085,2]
[377753292,1754536232401,-150.0,0.000191,2]
[377753293,1754536232410,-151.0,0.00019178,2]
[377753294,1754536232419,-177.49,0.00019178,2]
[377753296,1754536232428,-150.0,0.00019187,4]
[377753298,1754536232438,-150.0,0.00019208,4]
[377753299,1754536232447,-150.0,0.00019257,4]
[377753300,1754536232456,-150.0,0.00019331,4]
[377753301,1754536232465,-600.0,0.00019358,2]
[377753302,1754536232475,-572.83,0.00019358,2]
[377753303,1754536232484,-150.0,0.00019362,4]
[377753304,1754536232493,-150.0,0.00019362,4]
[377753305,1754536232503,-150.0,0.00019362,4]
[377753306,1754536232513,-150.0,0.00019362,4]
[377753307,1754536232523,-715.0,0.00019452,2]
[377753308,1754536232532,-385.0,0.00019452,2]
[377753309,1754536232542,-150.0,0.00019454,4]
[377753310,1754536232552,-166.66,0.00019463,2]
[377753312,1754536232562,-150.0,0.00019536,4]
[377753313,1754536232572,-508.0,0.00019573,2]
[377753315,1754536232581,-150.0,0.00019577,4]
[377753317,1754536232590,-150.0,0.00019623,4]
[377753319,1754536232600,-150.0,0.00019676,4]
[377753321,1754536232609,-150.0,0.000197,4]
[377753323,1754536232619,-150.0,0.00019711,4]
[377753325,1754536232628,-287.10715357,0.00019726,2]
[377753327,1754536232637,-359.08,0.00019753,2]
[377753329,1754536232647,-336.17,0.00019753,2]
[377753331,1754536232658,-1500.0,0.000198,7]
[377753333,1754536232667,-200.684217,0.000198,2]
[377753335,1754536232678,-150.0,0.00019823,4]
[377753347,1754536232794,-166.0,0.0001983,2]
[377753349,1754536232804,-160.0,0.00019884,2]
[377753351,1754536232814,-150.0,0.00019885,4]
[377753353,1754536232826,-150.0,0.00019885,4]
[377753355,1754536232835,-150.0,0.00019885,4]
[377753357,1754536232844,-150.0,0.00019885,4]
[377753359,1754536232853,-1444.605,0.00019896,2]
[377753361,1754536232863,-176.01,0.00019896,2]
[377753363,1754536232872,-1000.0,0.00019896,2]
[377753365,1754536232881,-1000.0,0.00019896,2]
[377753367,1754536232891,-1000.0,0.00019896,2]
[377753369,1754536232902,-1000.0,0.00019896,2]
[377753371,1754536232913,-1000.0,0.00019896,2]
[377753373,1754536232922,-1000.0,0.00019896,2]
[377753375,1754536232932,-1000.0,0.00019896,2]
[377753377,1754536232941,-1000.0,0.00019896,2]
[377753379,1754536232951,-1000.0,0.00019896,2]
[377753381,1754536232960,-1000.0,0.00019896,2]
[377753383,1754536232970,-5471.24716315,0.00019896,2]
[377753385,1754536232981,-602.34634899,0.00019896,2]
[377753387,1754536232990,-179.26271421,0.00019896,2]
[377753389,1754536232999,-1141.55742952,0.00019896,2]
[377753395,1754536233051,-3203.27889788,0.00019896,2]
[377753397,1754536233060,-1339.53751617,0.00019896,2]
[377753399,1754536233071,-157.21404567,0.000199,2]
[377753401,1754536233080,-5000.0,0.000199,2]
[377753403,1754536233090,-3000.0,0.000199,7]
[377753405,1754536233099,-277.42497435,0.000199,2]
[377753407,1754536233108,-178.40909247,0.000199,2]
[377753409,1754536233118,-150.0,0.00019946,4]
[377753411,1754536233128,-157.81,0.00019951,2]
[377753413,1754536233137,-642.28,0.00019986,3]
[377753415,1754536233146,-268.08776382,0.00019995,2]
[377753417,1754536233156,-296.051866,0.00019995,2]
[377753419,1754536233166,-500.0,0.00019995,2]
[377753421,1754536233175,-500.0,0.00019995,2]
[377753422,1754536233185,-650.0,0.00019995,2]
[377753424,1754536233195,-500.0,0.00019995,2]
[377753426,1754536233204,-500.0,0.00019995,2]
[377753428,1754536233214,-500.0,0.00019995,2]
[377753430,1754536233223,-500.0,0.00019995,2]
[377753432,1754536233232,-525.0,0.00019995,2]
[377753434,1754536233242,-513.78,0.00019995,2]
[377753436,1754536233252,-420.43141193,0.00019995,2]
[377753438,1754536233262,-151.0,0.00019996,2]
[377753440,1754536233272,-151.0,0.00019996,2]
[377753442,1754536233282,-151.0,0.00019996,2]
[377753444,1754536233291,-151.0,0.00019996,2]
[377753446,1754536233300,-1000.0,0.00019996,2]
[377753448,1754536233310,-1000.0,0.00019996,2]
[377753450,1754536233320,-1000.0,0.00019996,2]
[377753452,1754536233330,-1000.0,0.00019996,2]
[377753454,1754536233340,-1000.0,0.00019996,2]
[377753456,1754536233349,-1000.0,0.00019996,2]
[377753458,1754536233359,-1000.0,0.00019996,2]
[377753460,1754536233369,-1000.0,0.00019996,2]
[377753462,1754536233378,-1000.0,0.00019996,2]
[377753464,1754536233388,-1000.0,0.00019996,2]
[377753466,1754536233397,-1000.0,0.00019996,2]
[377753468,1754536233406,-1000.0,0.00019996,2]
[377753470,1754536233416,-1000.0,0.00019996,2]
[377753472,1754536233425,-1000.0,0.00019996,2]
[377753474,1754536233435,-1000.0,0.00019996,2]
[377753476,1754536233444,-928.14815886,0.00019996,2]
[377753478,1754536233453,-500.0,0.00019996,2]
[377753479,1754536233463,-150.25686961,0.00019996,2]
[377753481,1754536233472,-552.46598,0.00019996,2]
[377753483,1754536233482,-552.46598,0.00019996,2]
[377753485,1754536233492,-552.46598,0.00019996,2]
[377753487,1754536233501,-552.46598,0.00019996,2]
[377753489,1754536233511,-151.0,0.00019996,2]
[377753491,1754536233520,-151.0,0.00019996,2]
[377753493,1754536233529,-159.63401,0.00019996,2]
[377753495,1754536233539,-150.0,0.00019996,2]
[377753497,1754536233548,-176.393381,0.00019996,2]
[377753499,1754536233557,-151.0,0.00019996,2]
[377753501,1754536233566,-151.0,0.00019996,2]
[377753503,1754536233576,-3578.8202049,0.00019996,2]
[377753505,1754536233585,-1000.0,0.00019996,2]
[377753507,1754536233595,-1000.0,0.00019996,2]
[377753509,1754536233604,-1000.0,0.00019996,2]
[377753511,1754536233613,-1000.0,0.00019996,2]
[377753513,1754536233623,-32836.2106666,0.00019996,2]
[377753515,1754536233633,-1583.83287,0.00019996,2]
[377753517,1754536233643,-250.0,0.00019999,2]
[377753519,1754536233652,-1000.0,0.00019999,4]
[377753520,1754536233662,-300.0,0.00019999,2]
[377753522,1754536233672,-702.0,0.0002,2]
[377753524,1754536233681,-45853.52773147,0.0002,2]
[377753526,1754536233690,-5996.36099883,0.0002,2]
[377753528,1754536233700,-22881.78926735,0.0002,2]
[377753530,1754536233709,-51134.81219864,0.0002,5]
[377753534,1754536233734,-274.73006917,0.0002,5]
[377753539,1754536233773,-1351.2600005,0.0002,5]
[377753542,1754536233793,-1081.62114788,0.0002,5]
[377753546,1754536233829,-10466.70950894,0.0002,5]
[377753550,1754536233852,-328.35809412,0.0002,5]
[377753552,1754536233865,-9099.84551665,0.0002,5]
[377753554,1754536233876,-521.58677108,0.0002,5]
[377753556,1754536233888,-1099.65424976,0.0002,5]
[377753558,1754536233905,-693.10460756,0.0002,5]
[377753601,1754536237731,-700.30910282,0.0002,5]
[377753602,1754536237785,-750.78902854,0.0002,5]
[377753603,1754536237906,-471.00574549,0.0002,5]
[377753754,1754536239582,-298.1,0.0002,5]
[377754003,1754536242112,-0.02750714,0.0002,5]
[377754081,1754536242932,-146552.18864045,0.0002,5]
[377754083,1754536242941,-2500.0,0.0002,2]
[377754085,1754536242951,-5726.15631439,0.0002,2]
[377754087,1754536242960,-4430.9991769,0.0002,20]
[377754089,1754536242970,-16367.72763775,0.0002,14]
[377754091,1754536242979,-1267.61137264,0.0002,2]
[377754093,1754536242989,-1023.01363686,0.0002,2]
[377754095,1754536242999,-90104.4105629,0.0002,2]
[377754097,1754536243009,-580.65066212,0.0002,2]
[377754099,1754536243019,-92537.5564383,0.0002,2]
[377754239,1754536244337,-0.48302325,0.0002,2]
[377754392,1754536245735,-288.05571284,0.0002,2]
[377754394,1754536245747,-280.8496659,0.0002,2]
[377754396,1754536245756,-956.46356826,0.0002,2]
[377754399,1754536245768,-9043.53643174,0.0002,2]
[377754401,1754536245777,-4099.11321821,0.0002,2]
[377754402,1754536245787,-232.09,0.0002,2]
[377754405,1754536245797,-1408.68528996,0.0002,2]
[377754407,1754536245806,-151.0,0.0002,2]
[377754408,1754536245816,-151.0,0.0002,2]
[377754410,1754536245828,-151.0,0.0002,2]
[377754412,1754536245839,-151.0,0.0002,2]
[377754415,1754536245849,-151.0,0.0002,2]
[377754417,1754536245859,-151.0,0.0002,2]
[377754419,1754536245869,-153.325754,0.0002,2]
[377754421,1754536245878,-19540.64,0.0002,2]
[377754422,1754536245887,-2243.41535597,0.0002,5]
[377754425,1754536245898,-47975.09956427,0.0002,7]
[377754442,1754536246053,-1382.82802813,0.0002,7]
[377754444,1754536246068,-305.0301111,0.0002,7]
[377756683,1754536321856,329.9,0.00030136,120]
[377756684,1754536448779,1673.207144,7.945e-05,2]
[377756685,1754536497962,287.82,0.00015068,2]
[377756686,1754536498179,287.82,0.00016722,2]
[377756687,1754536506786,188.91631861,0.00019303,35]
[377756688,1754536511735,188.91631852,0.00019369,35]
[377756689,1754536514161,-187.86187262,0.00018376,2]
[377756690,1754536516490,-99.95812738,0.00018376,2]
[377756691,1754536516728,188.91631852,0.00019435,35]
[377756692,1754536521740,188.91631852,0.000195,35]
[377756693,1754536526835,188.91631852,0.00019566,36]
[377756694,1754536531732,188.91631852,0.00019632,36]
[377756700,1754536537613,188.91631852,0.00019698,36]
[377756708,1754536541742,188.91631852,0.00019763,36]
[377756720,1754536546767,188.91631852,0.00019829,36]
[377756728,1754536551727,188.91631852,0.00019895,36]
[377756730,1754536636478,164.0,0.000169,2]
[377756760,1754536804198,-160.0,0.0001808,2]
[377756761,1754536804233,-33.88862359,0.00018471,2]
[377756766,1754536974882,216.04,0.00013699,2]
[377756767,1754536993727,250.0,0.00015,2]
[377756768,1754537040703,-175.0,0.00018378,2]
[377756773,1754537157796,352.67,0.00018,2]
[377756774,1754537168109,157.0,0.000178,2]
[377756779,1754537310686,1164.22243114,0.00018,2]
[377756780,1754537320052,8683.05262163,0.000151,2]
[377756798,1754537432020,-185.74199469,0.00018471,2]
[377756799,1754537432033,-677.45771601,0.0001871,2]
[377756800,1754537432049,-20.28228399,0.0001871,2]
[377756801,1754537432062,-521.0,0.00018879,2]
[377756802,1754537432075,-300.0,0.00018879,2]
[377756803,1754537432088,-1200.0,0.00018879,2]
[377756804,1754537432102,-300.0,0.0001888,2]
[377756805,1754537432115,-250.0,0.0001888,2]
[377756806,1754537432129,-10754.98,0.0001888,2]
[377756807,1754537432143,-300.0,0.00018902,2]
[377756808,1754537432155,-265.42,0.00018905,2]
[377756809,1754537432169,-277.35679052,0.00018918,2]
[377756810,1754537432181,-5149.47,0.00018929,2]
[377756811,1754537432194,-1314.18762386,0.00018952,2]
[377756812,1754537432207,-154.0,0.0001898,2]
[377756813,1754537432219,-31285.08021466,0.00019,2]
[377756814,1754537432232,-2211.76187339,0.00019,2]
[377756815,1754537432245,-157.81,0.00019052,2]
[377756816,1754537432259,-1000.0,0.0001912,2]
[377756817,1754537432272,-177.49,0.00019178,2]
[377756818,1754537432285,-9999.99,0.00019339,2]
[377756819,1754537432298,-150.99,0.00019339,2]
[377756820,1754537432311,-1352.58,0.00019339,2]
[377756821,1754537432323,-711.62,0.00019339,2]
[377756822,1754537432336,-299.99,0.00019339,7]
[377756823,1754537432349,-5370.38,0.00019339,2]
[377756824,1754537432362,-999.99,0.00019339,2]
[377756825,1754537432376,-260.37,0.00019339,2]
[377756826,1754537432389,-9999.99,0.00019339,2]
[377756827,1754537432402,-175.0,0.00019482,7]
[377756828,1754537432415,-796.2,0.000195,2]
[377756829,1754537432427,-796.2,0.000195,2]
[377756830,1754537432440,-521.0,0.00019683,2]
[377756831,1754537432452,-600.0,0.00019711,2]
[377756832,1754537432466,-338.26,0.00019711,2]
[377756833,1754537432479,-155.40785768,0.000198,2]
[377756834,1754537432494,-1319.86073,0.000198,2]
[377756835,1754537432506,-160.0,0.00019888,2]
[377756836,1754537432520,-500.0,0.00019888,2]
[377756837,1754537432533,-500.0,0.00019888,2]
[377756838,1754537432545,-500.0,0.00019888,2]
[377756839,1754537432559,-500.0,0.00019888,2]
[377756840,1754537432571,-545.76809848,0.00019888,2]
[377756841,1754537432583,-1000.0,0.000199,2]
[377756842,1754537432596,-1000.0,0.000199,2]
[377756843,1754537432610,-1000.0,0.000199,2]
[377756844,1754537432625,-1000.0,0.000199,2]
[377756845,1754537432638,-1000.0,0.000199,2]
[377756846,1754537432651,-1000.0,0.000199,2]
[377756847,1754537432664,-1000.0,0.000199,2]
[377756848,1754537432676,-1000.0,0.000199,2]
[377756849,1754537432691,-1000.0,0.000199,2]
[377756850,1754537432706,-1000.0,0.000199,2]
[377756851,1754537432718,-1000.0,0.000199,2]
[377756852,1754537432733,-1000.0,0.000199,2]
[377756853,1754537432748,-1000.0,0.000199,2]
[377756854,1754537432761,-1000.0,0.000199,2]
[377756855,1754537432775,-1000.0,0.000199,2]
[377756856,1754537432788,-1000.0,0.000199,2]
[377756857,1754537432801,-1000.0,0.000199,2]
[377756858,1754537432813,-1000.0,0.000199,2]
[377756859,1754537432825,-1000.0,0.000199,2]
[377756860,1754537432837,-1000.0,0.000199,2]
[377756861,1754537432850,-1000.0,0.000199,2]
[377756862,1754537432863,-1000.0,0.000199,2]
[377756863,1754537432875,-1000.0,0.000199,2]
[377756864,1754537432887,-1000.0,0.000199,2]
[377756865,1754537432900,-1000.0,0.000199,2]
[377756866,1754537432912,-1000.0,0.000199,2]
[377756867,1754537432926,-1000.0,0.000199,2]
[377756868,1754537432938,-1000.0,0.000199,2]
[377756869,1754537432951,-1000.0,0.000199,2]
[377756870,1754537432964,-1000.0,0.000199,2]
[377756871,1754537432977,-1000.0,0.000199,2]
[377756872,1754537432989,-517.8312,0.000199,2]
[377756873,1754537433002,-4594.24610006,0.000199,2]
[377756874,1754537433014,-1319.86073,0.000199,2]
[377756875,1754537433027,-266.41722994,0.000199,2]
[377756876,1754537433040,-3653.52378535,0.0001994,2]
[377756877,1754537433053,-176.01147606,0.0001994,2]
[377756878,1754537433065,-1155.684,0.0001994,2]
[377756879,1754537433079,-1695.9970909,0.00019986,2]
[377756913,1754537436769,-31268.45378994,0.00019986,2]
[377756914,1754537436778,-500.0,0.00019995,2]
[377756915,1754537436787,-286.26620907,0.00019995,2]
[377756934,1754537437915,-300.55768777,0.00019995,2]
[377757130,1754537440069,-310.56610316,0.00019995,2]
[377757132,1754537440078,-897.39,0.00019995,2]
[377757134,1754537440088,-897.39,0.00019995,2]
[377757136,1754537440097,-897.39,0.00019995,2]
[377757138,1754537440106,-897.39,0.00019995,2]
[377757139,1754537440116,-897.39,0.00019995,2]
[377757141,1754537440125,-363.44031404,0.00019995,2]
[377757696,1754537446117,-446.65499946,0.00019995,2]
[377757805,1754537465230,244.64,0.00015068,2]
[377757806,1754537465441,244.64,0.00016742,2]
[377757813,1754537865922,427.85318012,0.0003013,120]
[377757819,1754538044582,213.46,0.00013699,2]
[377757829,1754538173995,251.01562752,0.0003,120]
[377757831,1754538246293,161.0,0.000177,2]
[377757840,1754538446050,175.0,0.00018319,7]
[377757843,1754538477781,278.0,0.00015068,2]
[377757844,1754538477861,278.0,0.00016687,2]
[377757876,1754538632015,-658.17195774,0.00018278,2]
[377757877,1754538632026,-1058.9999985,0.00018278,2]
[377757878,1754538632108,-3811.87921794,0.00018278,2]
[377757879,1754538632117,-278.0,0.00018305,2]
[377757880,1754538632126,-248.77,0.00018314,2]
[377757881,1754538632136,-348.87,0.00018326,2]
[377757882,1754538632145,-1000.0,0.00018337,2]
[377757883,1754538632154,-300.0,0.00018378,2]
[377757884,1754538632163,-1200.0,0.00018378,2]
[377757885,1754538632174,-300.0,0.00018378,2]
[377757886,1754538632184,-300.0,0.00018378,2]
[377757887,1754538632193,-6318.91234319,0.00018379,2]
[377757888,1754538632216,-510.0,0.00018379,2]
[377757889,1754538632235,-22162.91765681,0.00018379,2]
[377757890,1754538632244,-613.89,0.00018414,2]
[377757891,1754538632254,-5326.04,0.00018437,2]
[377757892,1754538632263,-7713.02042462,0.0001845,2]
[377757893,1754538632274,-448.48401838,0.0001845,2]
[377757894,1754538632285,-1170.27,0.0001845,2]
[377757906,1754538632820,-2511.155557,0.0001845,2]
[377757907,1754538632830,-459.0,0.00018709,2]
[377757908,1754538632840,-219.47,0.00018876,2]
[377757909,1754538632849,-158.0,0.0001888,2]
[377757910,1754538632859,-335.07,0.0001892,2]
[377757911,1754538632869,-335.07,0.0001893,2]
[377757912,1754538632878,-335.07,0.0001894,2]
[377757913,1754538632888,-335.07,0.0001895,2]
[377757914,1754538632898,-335.07,0.0001896,2]
[377757915,1754538632909,-335.07,0.0001897,2]
[377757916,1754538632919,-335.07,0.0001898,2]
[377757917,1754538632928,-335.07,0.0001899,2]
[377757918,1754538632940,-335.07,0.00019,2]
[377757919,1754538632949,-335.07,0.0001901,2]
[377757920,1754538632959,-335.07,0.0001902,2]
[377757921,1754538632968,-335.07,0.0001903,2]
[377757922,1754538632978,-1000.0,0.00019037,2]
[377757923,1754538632997,-172.21,0.00019037,2]
[377757924,1754538633015,-335.07,0.0001904,2]
[377757925,1754538633025,-522.0,0.00019043,2]
[377757926,1754538633035,-335.07,0.0001905,2]
[377757927,1754538633045,-335.07,0.0001906,2]
[377757928,1754538633055,-335.07,0.0001907,2]
[377757929,1754538633065,-335.07,0.00019079,2]
[377757930,1754538633075,-335.07,0.00019089,2]
[377757931,1754538633087,-335.07,0.00019099,2]
[377757932,1754538633106,-335.07,0.00019109,2]
[377757933,1754538633116,-177.49,0.00019178,2]
[377757934,1754538633127,-152.91,0.00019228,2]
[377757935,1754538633137,-242.43,0.00019228,2]
[377757936,1754538633147,-242.32,0.00019339,7]
[377757937,1754538633156,-9999.99,0.00019339,2]
[377757938,1754538633166,-999.99,0.00019339,2]
[377757939,1754538633177,-150.99,0.00019339,2]
[377757940,1754538633187,-2177.68,0.00019339,2]
[377757941,1754538633197,-600.0,0.00019372,2]
[377757942,1754538633207,-150.61,0.00019372,2]